Workbook

Sheet Disclaimer
B8: 2016-17 National tariff proposals: calculation model A&E

Sheet Navigation
B2: Steps | C2: Worksheet / Intermediary steps | D2: Overview | E2: Data source
B3: 1 >> A&E Prices | C3: Linked Sheet | D3: This worksheet has the TED prices for A&E
B4: 2 >> SQL A&E code | C4: A&E SQL code | D4: This worksheet shows the A&E SQL code used to generate A&E SQL Output | E4: Monitor SQL
B5: 3 >> SQL inputs | C5: A&E SQL Output | D5: This worksheet has the total cost and activities from SQL | E5: Monitor SQL
B6: 4 >> Non SQL inputs | C6: Price Adjustments | D6: A variety of factors to adjust the prices. Includes: inflation, efficiency, CNST and quantum adjustment | E6: Mixed (Monitor & External)
C7: Manual Adjustment Requests | D7: This worksheet displays the changes to tariffs agreed by Monitor after engagement with expert working groups
B8: 5 >> Processing | C8: Calculation | D8: This worksheet calculates the prices based on the A&E SQL output and applies factors to bring into comparison tariff year | E8: Monitor SQL
C9: Manual Adjustments | D9: This worksheet implements manual adjustments to tariffs agreed by Monitor and calculates final prices | E9: Mixed (Monitor & External)
B12: Reference | C12: 2015-16 A&E Tariff (s118) | D12: This worksheet has the s118 consultation 2015/16 published prices.

Sheet Linked Sheet
A1: 2016-17 tariff - A&E
A2: Home
C3: Tariff (£)
A4: HRG code | B4: HRG name | C4: Type 1 and 2 Departments | D4: Type 3 Departments
A5: VB01Z | B5: Emergency Medicine, Any Investigation with Category 5 Treatment | C5: =VLOOKUP('Linked Sheet'!A5,'Manual Adjustments'!B:Q,15,FALSE) -> 274.4402186 | D5: =VLOOKUP('Linked Sheet'!A5,'Manual Adjustments'!B:Q,16,FALSE) -> 63.81317496
A6: VB02Z | B6: Emergency Medicine, Category 3 Investigation with Category 4 Treatment | C6: =VLOOKUP('Linked Sheet'!A6,'Manual Adjustments'!B:Q,15,FALSE) -> 274.4402186 | D6: =VLOOKUP('Linked Sheet'!A6,'Manual Adjustments'!B:Q,16,FALSE) -> 63.81317496
A7: VB03Z | B7: Emergency Medicine, Category 3 Investigation with Category 1-3 Treatment | C7: =VLOOKUP('Linked Sheet'!A7,'Manual Adjustments'!B:Q,15,FALSE) -> 201.6156924 | D7: =VLOOKUP('Linked Sheet'!A7,'Manual Adjustments'!B:Q,16,FALSE) -> 63.81317496
A8: VB04Z | B8: Emergency Medicine, Category 2 Investigation with Category 4 Treatment | C8: =VLOOKUP('Linked Sheet'!A8,'Manual Adjustments'!B:Q,15,FALSE) -> 186.1666638 | D8: =VLOOKUP('Linked Sheet'!A8,'Manual Adjustments'!B:Q,16,FALSE) -> 63.81317496
A9: VB05Z | B9: Emergency Medicine, Category 2 Investigation with Category 3 Treatment | C9: =VLOOKUP('Linked Sheet'!A9,'Manual Adjustments'!B:Q,15,FALSE) -> 149.4139872 | D9: =VLOOKUP('Linked Sheet'!A9,'Manual Adjustments'!B:Q,16,FALSE) -> 63.81317496
A10: VB06Z | B10: Emergency Medicine, Category 1 Investigation with Category 3-4 Treatment | C10: =VLOOKUP('Linked Sheet'!A10,'Manual Adjustments'!B:Q,15,FALSE) -> 108.1303713 | D10: =VLOOKUP('Linked Sheet'!A10,'Manual Adjustments'!B:Q,16,FALSE) -> 63.81317496
A11: VB07Z | B11: Emergency Medicine, Category 2 Investigation with Category 2 Treatment | C11: =VLOOKUP('Linked Sheet'!A11,'Manual Adjustments'!B:Q,15,FALSE) -> 134.0580143 | D11: =VLOOKUP('Linked Sheet'!A11,'Manual Adjustments'!B:Q,16,FALSE) -> 63.81317496
A12: VB08Z | B12: Emergency Medicine, Category 2 Investigation with Category 1 Treatment | C12: =VLOOKUP('Linked Sheet'!A12,'Manual Adjustments'!B:Q,15,FALSE) -> 123.6709344 | D12: =VLOOKUP('Linked Sheet'!A12,'Manual Adjustments'!B:Q,16,FALSE) -> 63.81317496
A13: VB09Z | B13: Emergency Medicine, Category 1 Investigation with Category 1-2 Treatment | C13: =VLOOKUP('Linked Sheet'!A13,'Manual Adjustments'!B:Q,15,FALSE) -> 86.69850108 | D13: =VLOOKUP('Linked Sheet'!A13,'Manual Adjustments'!B:Q,16,FALSE) -> 63.81317496
A14: VB10Z | B14: Emergency Medicine, Dental Care | C14: =VLOOKUP('Linked Sheet'!A14,'Manual Adjustments'!B:Q,15,FALSE) -> 64.98589969 | D14: =VLOOKUP('Linked Sheet'!A14,'Manual Adjustments'!B:Q,16,FALSE) -> 63.81317496
A15: VB11Z | B15: Emergency Medicine, No Investigation with No Significant Treatment | C15: =VLOOKUP('Linked Sheet'!A15,'Manual Adjustments'!B:Q,15,FALSE) -> 63.81317496 | D15: =VLOOKUP('Linked Sheet'!A15,'Manual Adjustments'!B:Q,16,FALSE) -> 63.81317496
A16: VB99Z | B16: Emergency Medicine, Patient Dead On Arrival | C16: =VLOOKUP('Linked Sheet'!A16,'Manual Adjustments'!B:Q,15,FALSE) -> 86.69850108 | D16: =VLOOKUP('Linked Sheet'!A16,'Manual Adjustments'!B:Q,16,FALSE) -> 63.81317496

Sheet A&E SQL Code
A1: Home

Sheet A&E SQL Output
A1: Home
B2: A&E SQL Output
B4: Final A&E Total Activity and Cost Draft 13
B10: HRG | C10: SumOfTotal Activity | D10: SumOfTotal Cost
B11: VB01Z | C11: 35309 | D11: 10472809.2
B12: VB02Z | C12: 132813 | D12: 39463545.33
B13: VB03Z | C13: 514348 | D13: 112234381.5
B14: VB04Z | C14: 889265 | D14: 179175096
B15: VB05Z | C15: 388207 | D15: 62776796.2
B16: VB06Z | C16: 493592 | D16: 57764409.3
B17: VB07Z | C17: 1755207 | D17: 254662885
B18: VB08Z | C18: 4112656 | D18: 550471142.9
B19: VB09Z | C19: 3941735 | D19: 369865261.2
B20: VB10Z | C20: 10938 | D20: 791590.3073
B21: VB11Z | C21: 4543052 | D21: 322850507.7
B22: Total | C22: =SUBTOTAL(109,AnEActivityCost_DatabaseOne[SumOfTotal Activity]) -> 16817122 | D22: =SUBTOTAL(109,AnEActivityCost_DatabaseOne[SumOfTotal Cost]) -> 1960528425

Sheet Price Adjustments
A1: Home
B2: Table 1 : Price Adjustments : Inflation and Efficiency for all models
B3: Adjustment Type | C3: 2013/14 | D3: 2014/15 | E3: 2015/16 | F3: 2016/17 | G3: Total uplift up to 15/16 price levels | H3: Source
B4: Inflation | C4: 0.027 | D4: 0.025 | E4: 0.01925296899 | F4: 0 | G4: =(1+D4)*(1+E4)-1 -> 0.04473429321
B5: Efficiency* | C5: -0.04 | D5: -0.04 | E5: -0.035 | F5: 0 | G5: =(1+D5)*(1+E5)-1 -> -0.0736
B6: Inflation and Efficiency (total adjustment) | C6: -0.013 | D6: -0.015 | E6: -0.01642088493 | F6: 0 | G6: =(1+D6)*(1+E6)-1 -> -0.03117457165
B7: * In 2015-16 the efficiency assumption of 4% was reduced by 0.2% | J7: Scaling factor
B8: We use a chain linking the post adjustments for joining the efficiency and inflation adjustment together from 2015/16 onwards (this is a slight methodological change from the 13/14 DH method). | J8: 0.9206955218
B10: Table 2: Price Adjustments : CNST increase / decrease | J10: Table 3: Quantum reconciliation (QR) for APC and OPROC
B11: Sub-chapter | C11: 2013/14 | D11: 2014/15 | E11: 2015/16 | F11: 2016/17 | G11: Total uplift up to 16/17 price levels | H11: Source | J11: Sub-chapter | K11: QR1 (RC TARGET) | L11: QR1 + SCALING | M11: SMOOTHING ADJUSTMENT
B12: AA | C12: 0.00271206 | D12: 0.00403312 | E12: 0.01017722 | F12: 0 | G12: =(1+D12)*(1+E12)-1 -> 0.01425138595 | J12: AA | K12: -0.008315217371 | L12: -0.08696026159
B13: AB | C13: 0.00466391 | D13: 0.0025169 | E13: 0.00667659 | F13: 0 | G13: 0.009210294309 | J13: AB | K13: -0.008315217371 | L13: -0.08696026159
B14: BZ | C14: 0.00171356 | D14: 0.00229656 | E14: 0.01026126 | F14: 0 | G14: 0.0125813856 | J14: BZ | K14: -0.008315217371 | L14: -0.08696026159
B15: CA | C15: 0 | D15: 0 | E15: 0 | F15: 0 | G15: 0 | J15: CA | K15: -0.008315217371 | L15: -0.08696026159
B16: CB | C16: 0 | D16: 0 | E16: 0 | F16: 0 | G16: 0 | J16: CB | K16: -0.008315217371 | L16: -0.08696026159
B17: CD | C17: 0 | D17: 0 | E17: 0 | F17: 0 | G17: 0 | J17: CD | K17: -0.008315217371 | L17: -0.08696026159
B18: DZ | C18: 0.00209883 | D18: 1.128e-05 | E18: 0.00197934 | F18: 0 | G18: 0.001990642327 | J18: DZ | K18: -0.008315217371 | L18: -0.08696026159
B19: EA | C19: 0.00068376 | D19: 0.00087019 | E19: 0.00378956 | F19: 0 | G19: 0.004663047637 | J19: EA | K19: -0.008315217371 | L19: -0.08696026159
B20: EB | C20: 0.00090147 | D20: 0.00072782 | E20: 0.00281933 | F20: 0 | G20: 0.003549201965 | J20: EB | K20: -0.008315217371 | L20: -0.08696026159
B21: EC | C21: 0 | D21: 0 | E21: 0 | F21: 0 | G21: 0 | J21: EC | K21: -0.008315217371 | L21: -0.08696026159
B22: FZ | C22: 0.00694343 | D22: 0.00209343 | E22: 0.00915604 | F22: 0 | G22: 0.01126863753 | J22: FZ | K22: -0.008315217371 | L22: -0.08696026159
B23: GA | C23: 0.008393 | D23: 0.00325488 | E23: 0.0118298 | F23: 0 | G23: 0.01512318458 | J23: GA | K23: -0.008315217371 | L23: -0.08696026159
B24: GB | C24: 0.00398577 | D24: 0.00146704 | E24: 0.00534116 | F24: 0 | G24: 0.006816035695 | J24: GB | K24: -0.008315217371 | L24: -0.08696026159
B25: GC | C25: 0.00613968 | D25: 0.00178114 | E25: 0.00945322 | F25: 0 | G25: 0.01125119751 | J25: GC | K25: -0.008315217371 | L25: -0.08696026159
B26: HA | C26: 0.01145872 | D26: 0.00392476 | E26: 0.01198149 | F26: 0 | G26: 0.01595327447 | J26: HA | K26: -0.008315217371 | L26: -0.08696026159
B27: HB | C27: 0.01060436 | D27: 0.00365578 | E27: 0.0140532 | F27: 0 | G27: 0.01776035541 | J27: HB | K27: -0.008315217371 | L27: -0.08696026159
B28: HC | C28: 0.0063164 | D28: 0.00524217 | E28: 0.01470648 | F28: 0 | G28: 0.02002574387 | J28: HC | K28: -0.008315217371 | L28: -0.08696026159
B29: HD | C29: 0.00422218 | D29: 0.00012462 | E29: 0.00668082 | F29: 0 | G29: 0.006806272564 | J29: HD | K29: -0.008315217371 | L29: -0.08696026159
B30: HR | C30: 0.00611253 | D30: 0.00205073 | E30: 0.01485676 | F30: 0 | G30: 0.0169379572 | J30: HR | K30: -0.008315217371 | L30: -0.08696026159
B31: JA | C31: 0.00643041 | D31: 0.00127943 | E31: 0.01011172 | F31: 0 | G31: 0.01140408724 | J31: JA | K31: -0.008315217371 | L31: -0.08696026159
B32: JB | C32: 0 | D32: 0 | E32: 0 | F32: 0 | G32: 0 | J32: JB | K32: -0.008315217371 | L32: -0.08696026159
B33: JC | C33: 0.00365108 | D33: 0.00178039 | E33: 0.00895617 | F33: 0 | G33: 0.01075250548 | J33: JC | K33: -0.008315217371 | L33: -0.08696026159
B34: JD | C34: 0.002673 | D34: 0.0010486 | E34: 0.00493455 | F34: 0 | G34: 0.005988324369 | J34: JD | K34: -0.008315217371 | L34: -0.08696026159
B35: KA | C35: 0.00384504 | D35: 0.00094411 | E35: 0.00759871 | F35: 0 | G35: 0.008549994018 | J35: KA | K35: -0.008315217371 | L35: -0.08696026159
B36: KB | C36: 0.00035167 | D36: 0.00066025 | E36: 0.00275235 | F36: 0 | G36: 0.003414417239 | J36: KB | K36: -0.008315217371 | L36: -0.08696026159
B37: KC | C37: 0.00101565 | D37: 0.00012352 | E37: 0.00243608 | F37: 0 | G37: 0.002559900905 | J37: KC | K37: -0.008315217371 | L37: -0.08696026159
B38: LA | C38: 0.00087421 | D38: 0.00051492 | E38: 0.00239542 | F38: 0 | G38: 0.00291157345 | J38: LA | K38: -0.008315217371 | L38: -0.08696026159
B39: LB | C39: 0.00458634 | D39: 0.0011235 | E39: 0.00569086 | F39: 0 | G39: 0.006820753681 | J39: LB | K39: -0.008315217371 | L39: -0.08696026159
B40: LD | C40: 0 | D40: 0 | E40: 0 | F40: 0 | G40: 0 | J40: LD | K40: -0.008315217371 | L40: -0.08696026159
B41: LE | C41: 0 | D41: 0 | E41: 0 | F41: 0 | G41: 0 | J41: LE | K41: -0.008315217371 | L41: -0.08696026159
B42: MA | C42: 0.05160373 | D42: 0.00406322 | E42: 0.02111675 | F42: 0 | G42: 0.025265772 | J42: MA | K42: -0.008315217371 | L42: -0.08696026159
B43: MB | C43: 0.04661929 | D43: 0.00150091 | E43: 0.0166609 | F43: 0 | G43: 0.01818681651 | J43: MB | K43: -0.008315217371 | L43: -0.08696026159
B44: MC | C44: 0 | D44: 0 | E44: 0 | F44: 0 | G44: 0 | J44: MC | K44: -0.008315217371 | L44: -0.08696026159
B45: NZ | C45: -0.0892802 | D45: 0.02826757 | E45: 0 | F45: 0 | G45: 0.02826757 | J45: NZ | K45: -0.008315217371 | L45: -0.08696026159
B46: PB | C46: 0 | D46: 0 | E46: 0 | F46: 0 | G46: 0 | J46: PB | K46: -0.008315217371 | L46: -0.08696026159
B47: PC | C47: 0 | D47: 0 | E47: 0 | F47: 0 | G47: 0 | J47: PC | K47: -0.008315217371 | L47: -0.08696026159
B48: PD | C48: 0 | D48: 0 | E48: 0 | F48: 0 | G48: 0 | J48: PD | K48: -0.008315217371 | L48: -0.08696026159
B49: PE | C49: 0 | D49: 0 | E49: 0 | F49: 0 | G49: 0 | J49: PE | K49: -0.008315217371 | L49: -0.08696026159
B50: PF | C50: 0 | D50: 0 | E50: 0 | F50: 0 | G50: 0 | J50: PF | K50: -0.008315217371 | L50: -0.08696026159
B51: PG | C51: 0 | D51: 0 | E51: 0 | F51: 0 | G51: 0 | J51: PG | K51: -0.008315217371 | L51: -0.08696026159
B52: PH | C52: 0 | D52: 0 | E52: 0 | F52: 0 | G52: 0 | J52: PH | K52: -0.008315217371 | L52: -0.08696026159
B53: PJ | C53: 0 | D53: 0 | E53: 0 | F53: 0 | G53: 0 | J53: PJ | K53: -0.008315217371 | L53: -0.08696026159
B54: PK | C54: 0 | D54: 0 | E54: 0 | F54: 0 | G54: 0 | J54: PK | K54: -0.008315217371 | L54: -0.08696026159
B55: PL | C55: 0 | D55: 0 | E55: 0 | F55: 0 | G55: 0 | J55: PL | K55: -0.008315217371 | L55: -0.08696026159
B56: PM | C56: 0 | D56: 0 | E56: 0 | F56: 0 | G56: 0 | J56: PM | K56: -0.008315217371 | L56: -0.08696026159
B57: PN | C57: 0 | D57: 0 | E57: 0 | F57: 0 | G57: 0 | J57: PN | K57: -0.008315217371 | L57: -0.08696026159
B58: PP | C58: 0 | D58: 0 | E58: 0 | F58: 0 | G58: 0 | J58: PP | K58: -0.008315217371 | L58: -0.08696026159
B59: PR | C59: 0 | D59: 0 | E59: 0 | F59: 0 | G59: 0 | J59: PR | K59: -0.008315217371 | L59: -0.08696026159
B60: PT | C60: 0 | D60: 0 | E60: 0 | F60: 0 | G60: 0 | J60: PT | K60: -0.008315217371 | L60: -0.08696026159
B61: PV | C61: 0 | D61: 0 | E61: 0 | F61: 0 | G61: 0 | J61: PV | K61: -0.008315217371 | L61: -0.08696026159
B62: PW | C62: 0 | D62: 0 | E62: 0 | F62: 0 | G62: 0 | J62: PW | K62: -0.008315217371 | L62: -0.08696026159
B63: PX | C63: 0 | D63: 0 | E63: 0 | F63: 0 | G63: 0 | J63: PX | K63: -0.008315217371 | L63: -0.08696026159
B64: RA | C64: 0 | D64: 0 | E64: 0 | F64: 0 | G64: 0 | J64: RA | K64: -0.008315217371 | L64: -0.08696026159
B65: SA | C65: 0.0006341 | D65: -0.00055466 | E65: 0.0047664 | F65: 0 | G65: 0.004209096269 | J65: SA | K65: -0.008315217371 | L65: -0.08696026159
B66: SB | C66: 0 | D66: 0 | E66: 0 | F66: 0 | G66: 0 | J66: SB | K66: -0.008315217371 | L66: -0.08696026159
B67: SC | C67: 0 | D67: 0 | E67: 0 | F67: 0 | G67: 0 | J67: SC | K67: -0.008315217371 | L67: -0.08696026159
B68: SD | C68: 0 | D68: 0 | E68: 0 | F68: 0 | G68: 0 | J68: SD | K68: -0.008315217371 | L68: -0.08696026159
B69: UZ | C69: 0 | D69: 0 | E69: 0 | F69: 0 | G69: 0 | J69: UZ | K69: -0.008315217371 | L69: -0.08696026159
B70: VA | C70: 0.01367861 | D70: 0.00317996 | E70: 0.01158161 | F70: 0 | G70: 0.01479839906 | J70: VA | K70: -0.008315217371 | L70: -0.08696026159
B71: VB | C71: 0.01153917 | D71: 0.00733526 | E71: 0.02146819 | F71: 0 | G71: 0.02896092476 | J71: VB | K71: -0.008315217371 | L71: -0.08696026159
B72: VC | C72: 0 | D72: 0 | E72: 0 | F72: 0 | G72: 0 | J72: VC | K72: -0.008315217371 | L72: -0.08696026159
B73: WA | C73: 0.00013777 | D73: 0.00102102 | E73: 0.00528266 | F73: 0 | G73: 0.006309073702 | J73: WA | K73: -0.008315217371 | L73: -0.08696026159
B74: WD | C74: 0 | D74: 0 | E74: 0 | F74: 0 | G74: 0 | J74: WD | K74: -0.008315217371 | L74: -0.08696026159
B75: WF | C75: 0 | D75: 0 | E75: 0 | F75: 0 | G75: 0 | J75: WF | K75: -0.008315217371 | L75: -0.08696026159
B76: XA | C76: 0 | D76: 0 | E76: 0 | F76: 0 | G76: =(1+D76)*(1+E76)-1 -> 0 | J76: XA | K76: -0.008315217371 | L76: -0.08696026159
B77: XB | C77: 0 | D77: 0 | E77: 0 | F77: 0 | G77: 0 | J77: XB | K77: -0.008315217371 | L77: -0.08696026159
B78: XC | C78: 0 | D78: 0 | E78: 0 | F78: 0 | G78: 0 | J78: XC | K78: -0.008315217371 | L78: -0.08696026159
B79: XD | C79: 0 | D79: 0 | E79: 0 | F79: 0 | G79: 0 | J79: XD | K79: -0.008315217371 | L79: -0.08696026159
B80: YQ | C80: 0 | D80: 0 | E80: 0 | F80: 0 | G80: 0 | J80: YQ | K80: -0.008315217371 | L80: -0.08696026159
B81: YR | C81: 0 | D81: 0 | E81: 0 | F81: 0 | G81: 0 | J81: YR | K81: -0.008315217371 | L81: -0.08696026159
B82: YZ | C82: 0 | D82: 0 | E82: 0 | F82: 0 | G82: 0 | J82: YZ | K82: -0.008315217371 | L82: -0.08696026159
B83: ZZ | C83: 0 | D83: 0 | E83: 0 | F83: 0 | G83: 0 | J83: ZZ | K83: -0.008315217371 | L83: -0.08696026159
B84: Maternity | C84: 0 | D84: 0.0283 | E84: 0.1108689401 | F84: 0 | G84: 0.1423065311
B86: Note: Maternity is delivery element only.
B88: Table 4: Quantum Reconciliation (QR1) for the rest of the models
B89: Model | C89: QR1 (RC TARGET) | D89: QR1 + SCALING
B90: Outpatient Attendances (OPATT) | C90: 0.01170291399 | D90: -0.06852965769
B91: Accident and Emergency (A&E) | C91: 0.006688314322 | D91: -0.07314657715
B92: Unbundled services | C92: 0.003674073467 | D92: 0.003674073467
B93: Best Practice Tariffs | C93: 0 | D93: 0
B94: Maternity pathway | C94: 0 | D94: 0
B95: Other mandatory prices | C95: 0 | D95: 0
B96: Non-mandatory Prices | C96: 0 | D96: 0

Sheet 2015-16 A&E Tariff (s118)
A1: Home
A3: 2015-16 tariff - A&E (s.118) | C3: Source: | D3: https://www.gov.uk/government/uploads/system/uploads/attachment_data/file/379578/Annex_5a.xlsx
C5: Tariff (£)
A6: HRG code | B6: HRG name | C6: Type 1 and 2 Departments | D6: Type 3 Departments
A7: VB01Z | B7: Emergency Medicine, Any Investigation with Category 5 Treatment | C7: 239 | D7: 56
A8: VB02Z | B8: Emergency Medicine, Category 3 Investigation with Category 4 Treatment | C8: 226 | D8: 56
A9: VB03Z | B9: Emergency Medicine, Category 3 Investigation with Category 1-3 Treatment | C9: 192 | D9: 56
A10: VB04Z | B10: Emergency Medicine, Category 2 Investigation with Category 4 Treatment | C10: 168 | D10: 56
A11: VB05Z | B11: Emergency Medicine, Category 2 Investigation with Category 3 Treatment | C11: 146 | D11: 56
A12: VB06Z | B12: Emergency Medicine, Category 1 Investigation with Category 3-4 Treatment | C12: 102 | D12: 56
A13: VB07Z | B13: Emergency Medicine, Category 2 Investigation with Category 2 Treatment | C13: 128 | D13: 56
A14: VB08Z | B14: Emergency Medicine, Category 2 Investigation with Category 1 Treatment | C14: 116 | D14: 56
A15: VB09Z | B15: Emergency Medicine, Category 1 Investigation with Category 1-2 Treatment | C15: 81 | D15: 56
A16: VB10Z | B16: Emergency Medicine, Dental Care | C16: 56 | D16: 56
A17: VB11Z | B17: Emergency Medicine, No Investigation with No Significant Treatment | C17: 56 | D17: 56
A19: Please note that patients who are dead on arrival (DOA) attract the tariff for VB09Z.

Sheet Manual Adjustment Requests
A1: Home
A2: A&E
A3: HRG code | B3: HRG Descriptions | C3: NHS England comments | D3: Summary of comments we received | E3: Our assessment of comments made | F3: Precise implementation instructions for manual adjustments (if applicable)
A4: VB01Z | B4: Emergency Medicine, Any Investigation with Category 5 Treatment | D4: VB01Z is most resource intensive. Equalise Type 1 and 2 with same for VB02Z. Why the big increase from previous year? Change in reference costs or change in calculation methodology? | E4: The price should be at least equal to VB02Z | F4: Equalise VB01Z and VB02Z on clinical and statistical grounds). This small (£1) difference between these HRGs will be reviewed in the future iterations of the tariff.
A5: VB02Z | B5: Emergency Medicine, Category 3 Investigation with Category 4 Treatment | D5: VB01Z is most resource intensive. Equalise Type 1 and 2 with same for VB02Z. Why the big increase from previous year? Change in reference costs or change in calculation methodology? | E5: Clinical expert advise similar resource required for VB01Z than VB02Z, therefore Type 1 and 2 prices should be equalised. The small residual difference has been caused by minor adjustments to post average costs. | F5: Equalise VB01Z and VB02Z on clinical and statistical grounds) will be within the error margins
A6: VB03Z | B6: Emergency Medicine, Category 3 Investigation with Category 1-3 Treatment | D6: Why the big increase from previous year? Change in reference costs or change in calculation methodology? | E6: Leave. There is currently no policy related to smoothing A&E when large changes occur. This may need to be reviewed in future iterations of the tariff.
A7: VB04Z | B7: Emergency Medicine, Category 2 Investigation with Category 4 Treatment | D7: Why the big increase from previous year? Change in reference costs or change in calculation methodology? | E7: Leave. There is currently no policy related to smoothing A&E when large changes occur. This may need to be reviewed in future iterations of the tariff.
A8: VB05Z | B8: Emergency Medicine, Category 2 Investigation with Category 3 Treatment | D8: Why the big increase from previous year? Change in reference costs or change in calculation methodology? | E8: Leave. There is currently no policy related to smoothing A&E when large changes occur. This may need to be reviewed in future iterations of the tariff.
A9: VB06Z | B9: Emergency Medicine, Category 1 Investigation with Category 3-4 Treatment | D9: Why the big increase from previous year? Change in reference costs or change in calculation methodology? | E9: Leave. There is currently no policy related to smoothing A&E when large changes occur. This may need to be reviewed in future iterations of the tariff.
A10: VB07Z | B10: Emergency Medicine, Category 2 Investigation with Category 2 Treatment | D10: Why the big increase from previous year? Change in reference costs or change in calculation methodology? | E10: Leave. There is currently no policy related to smoothing A&E when large changes occur. This may need to be reviewed in future iterations of the tariff.
A11: VB08Z | B11: Emergency Medicine, Category 2 Investigation with Category 1 Treatment | D11: Why the big increase from previous year? Change in reference costs or change in calculation methodology? | E11: Leave. There is currently no policy related to smoothing A&E when large changes occur. This may need to be reviewed in future iterations of the tariff.
A12: VB09Z | B12: Emergency Medicine, Category 1 Investigation with Category 1-2 Treatment | D12: Why the big increase from previous year? Change in reference costs or change in calculation methodology? | E12: Leave. There is currently no policy related to smoothing A&E when large changes occur. This may need to be reviewed in future iterations of the tariff.
A13: VB10Z | B13: Emergency Medicine, Dental Care | D13: Why the big increase from previous year? Change in reference costs or change in calculation methodology? | E13: Leave. There is currently no policy related to smoothing A&E when large changes occur. This may need to be reviewed in future iterations of the tariff.
A14: VB11Z | B14: Emergency Medicine, No Investigation with No Significant Treatment | D14: Why the big increase from previous year? Change in reference costs or change in calculation methodology? | E14: Leave. There is currently no policy related to smoothing A&E when large changes occur. This may need to be reviewed in future iterations of the tariff.
A15: VB99Z | B15: Emergency Medicine, Patient Dead On Arrival

Sheet Calculation
C1: Home
C2: A&E Price Calculation
C3: Individual adjustment factors
C5: Adjustment Type | E5: ='Price Adjustments'!D3 -> 2014/15 | F5: ='Price Adjustments'!E3 -> 2015/16
C6: CNST (Subchapter VB) | E6: ='Price Adjustments'!D71 -> 0.00733526 | F6: ='Price Adjustments'!E71 -> 0.02146819
C7: Inflation | E7: ='Price Adjustments'!D4 -> 0.025 | F7: ='Price Adjustments'!E4 -> 0.01925296899
C8: Efficiency | E8: ='Price Adjustments'!D5 -> -0.04 | F8: ='Price Adjustments'!E5 -> -0.035
C9: Inflation and Efficiency | E9: =SUM(E7:E8) -> -0.015 | F9: =(1+F7)*(1+F8)-1 -> -0.01642088493
C11: 1 | D11: 2 | E11: 3 | F11: 4 | G11: 5 | H11: 6 | I11: 7 | J11: 8 | K11: 9 | L11: 10 | M11: 11 | N11: 12 | O11: 13 | P11: 14 | Q11: 15 | R11: 16
C12: Type 1 and Type 2 departments | E12: Data Pull | H12: Calculation | J12: Additional Adjustments | K12: Additional Adjustments
C13: HRG code | D13: Description | E13: Total Activity | F13: Total Cost (£) | H13: Unit Cost (£) | J13: CNST 2014/15 and 2015/16 | K13: Inflation and Efficiency 2014/15 and 2015/16 | L13: Total Adjustment | N13: Modelled Tariff (£) | P13: Quantum Adjustment (QR1) | R13: Modelled Tariff with QR1 (£)
C14: VB01Z | D14: Emergency Medicine, Any Investigation with Category 5 Treatment | E14: =VLOOKUP(C14,'A&E SQL Output'!$B$11:$D$22,2,FALSE) -> 35309 | F14: =VLOOKUP(C14,'A&E SQL Output'!$B$11:$D$22,3,FALSE) -> 10472809.2 | H14: =F14/E14 -> 296.6045257 | J14: =(1+$E$6)*(1+$F$6)-1 -> 0.02896092476 | K14: =(1+$E$9)*(1+$F$9)-1 -> -0.03117457165 | L14: =(1+J14)*(1+K14)-1 -> -0.003116491321 | N14: =H14*(1+L14) -> 295.6801603 | P14: =QR1_AnE -> -0.07314657715 | R14: =N14*(1+P14) -> 274.0521686
C15: VB02Z | D15: Emergency Medicine, Category 3 Investigation with Category 4 Treatment | E15: =VLOOKUP(C15,'A&E SQL Output'!$B$11:$D$22,2,FALSE) -> 132813 | F15: =VLOOKUP(C15,'A&E SQL Output'!$B$11:$D$22,3,FALSE) -> 39463545.33 | H15: =F15/E15 -> 297.1361639 | J15: 0.02896092476 | K15: =(1+$E$9)*(1+$F$9)-1 -> -0.03117457165 | L15: =(1+J15)*(1+K15)-1 -> -0.003116491321 | N15: =H15*(1+L15) -> 296.2101416 | P15: -0.07314657715 | R15: 274.5433836
C16: VB03Z | D16: Emergency Medicine, Category 3 Investigation with Category 1-3 Treatment | E16: =VLOOKUP(C16,'A&E SQL Output'!$B$11:$D$22,2,FALSE) -> 514348 | F16: =VLOOKUP(C16,'A&E SQL Output'!$B$11:$D$22,3,FALSE) -> 112234381.5 | H16: 218.2070922 | J16: 0.02896092476 | K16: -0.03117457165 | L16: -0.003116491321 | N16: 217.5270517 | P16: -0.07314657715 | R16: 201.6156924
C17: VB04Z | D17: Emergency Medicine, Category 2 Investigation with Category 4 Treatment | E17: =VLOOKUP(C17,'A&E SQL Output'!$B$11:$D$22,2,FALSE) -> 889265 | F17: =VLOOKUP(C17,'A&E SQL Output'!$B$11:$D$22,3,FALSE) -> 179175096 | H17: 201.486729 | J17: 0.02896092476 | K17: -0.03117457165 | L17: -0.003116491321 | N17: 200.8587973 | P17: -0.07314657715 | R17: 186.1666638
C18: VB05Z | D18: Emergency Medicine, Category 2 Investigation with Category 3 Treatment | E18: =VLOOKUP(C18,'A&E SQL Output'!$B$11:$D$22,2,FALSE) -> 388207 | F18: =VLOOKUP(C18,'A&E SQL Output'!$B$11:$D$22,3,FALSE) -> 62776796.2 | H18: 161.7095936 | J18: 0.02896092476 | K18: -0.03117457165 | L18: -0.003116491321 | N18: 161.205627 | P18: -0.07314657715 | R18: 149.4139872
C19: VB06Z | D19: Emergency Medicine, Category 1 Investigation with Category 3-4 Treatment | E19: =VLOOKUP(C19,'A&E SQL Output'!$B$11:$D$22,2,FALSE) -> 493592 | F19: =VLOOKUP(C19,'A&E SQL Output'!$B$11:$D$22,3,FALSE) -> 57764409.3 | H19: 117.0286579 | J19: 0.02896092476 | K19: -0.03117457165 | L19: -0.003116491321 | N19: 116.6639391 | P19: -0.07314657715 | R19: 108.1303713
C20: VB07Z | D20: Emergency Medicine, Category 2 Investigation with Category 2 Treatment | E20: =VLOOKUP(C20,'A&E SQL Output'!$B$11:$D$22,2,FALSE) -> 1755207 | F20: =VLOOKUP(C20,'A&E SQL Output'!$B$11:$D$22,3,FALSE) -> 254662885 | H20: 145.0899438 | J20: 0.02896092476 | K20: -0.03117457165 | L20: -0.003116491321 | N20: 144.6377723 | P20: -0.07314657715 | R20: 134.0580143
C21: VB08Z | D21: Emergency Medicine, Category 2 Investigation with Category 1 Treatment | E21: =VLOOKUP(C21,'A&E SQL Output'!$B$11:$D$22,2,FALSE) -> 4112656 | F21: =VLOOKUP(C21,'A&E SQL Output'!$B$11:$D$22,3,FALSE) -> 550471142.9 | H21: 133.8480882 | J21: 0.02896092476 | K21: -0.03117457165 | L21: -0.003116491321 | N21: 133.4309518 | P21: -0.07314657715 | R21: 123.6709344
C22: VB09Z | D22: Emergency Medicine, Category 1 Investigation with Category 1-2 Treatment | E22: =VLOOKUP(C22,'A&E SQL Output'!$B$11:$D$22,2,FALSE) -> 3941735 | F22: =VLOOKUP(C22,'A&E SQL Output'!$B$11:$D$22,3,FALSE) -> 369865261.2 | H22: 93.83311186 | J22: 0.02896092476 | K22: -0.03117457165 | L22: -0.003116491321 | N22: 93.54068178 | P22: -0.07314657715 | R22: 86.69850108
C23: VB10Z | D23: Emergency Medicine, Dental Care | E23: =VLOOKUP(C23,'A&E SQL Output'!$B$11:$D$22,2,FALSE) -> 10938 | F23: =VLOOKUP(C23,'A&E SQL Output'!$B$11:$D$22,3,FALSE) -> 791590.3073 | H23: =F23/E23 -> 72.37066258 | J23: 0 | K23: -0.03117457165 | L23: -0.03117457165 | N23: 70.11453817 | P23: -0.07314657715 | R23: 64.98589969
C24: VB11Z | D24: Emergency Medicine, No Investigation with No Significant Treatment | E24: =VLOOKUP(C24,'A&E SQL Output'!$B$11:$D$22,2,FALSE) -> 4543052 | F24: =VLOOKUP(C24,'A&E SQL Output'!$B$11:$D$22,3,FALSE) -> 322850507.7 | H24: =F24/E24 -> 71.06467364 | J24: 0 | K24: -0.03117457165 | L24: -0.03117457165 | N24: 68.84926288 | P24: -0.07314657715 | R24: 63.81317496

Sheet Manual Adjustments
B1: 2016-17 tariff - accident & emergency - Manual Adjustments
B2: 1 | C2: 2 | D2: 3 | E2: 4 | F2: 5 | G2: 6 | H2: 7 | I2: 8 | J2: 9 | K2: 10 | L2: 11 | M2: 12 | N2: 13 | O2: 14 | P2: 15 | Q2: 16
B3: Home | D3: 2015/16 Tariff (s.118) | F3: 2016/17 Tariff | H3: Activity | I3: Manual Adjustments | K3: Final Prices
B4: HRG code | C4: HRG name | D4: Type 1 and 2 Departments (£) | E4: Type 3 Departments (£) | F4: Type 1 and 2 Departments (£) | H4: Type 1 and 2 Departments | I4: Adjustment Request | J4: Adjusted Price (£) | K4: Price Decision | L4: Chosen Price (£) | M4: Chosen Price with QR2 (£) | N4: Inflation and Efficiency (total adjustment) 2016/17 | O4: CNST 2016/17 | P4: Type 1 and 2 Departments (£) | Q4: Type 3 Departments (£)
B5: VB01Z | C5: Emergency Medicine, Any Investigation with Category 5 Treatment | D5: =VLOOKUP($B5,AandE_1516_Tariff,3, FALSE) -> 239 | E5: =VLOOKUP($B5,AandE_1516_Tariff,4, FALSE) -> 56 | F5: =VLOOKUP($B5,Calculation!$C$14:$R$24,16,FALSE) -> 274.0521686 | H5: =LOOKUP(B5,AnEActivityCost_DatabaseOne[HRG],AnEActivityCost_DatabaseOne[SumOfTotal Activity]) -> 35309 | I5: Equalise VB01Z and VB02Z on clinical and statistical grounds) will be within the error margins | J5: =SUMPRODUCT($F$5:$F$6,$H$5:$H$6)/SUM($H$5:$H$6) -> 274.4402186 | K5: Adjusted | L5: =IF(K5="Modelled",F5,IF(K5="Adjusted",J5,"Error")) -> 274.4402186 | M5: =+L5*$L$18 -> 274.4402186 | N5: =+'Price Adjustments'!$F$6 -> 0 | O5: =+'Price Adjustments'!$F$71 -> 0 | P5: =M5*(1+N5)*(1+O5) -> 274.4402186 | Q5: =MIN($P$5:$P$13,$P$15:$P$16) -> 63.81317496
B6: VB02Z | C6: Emergency Medicine, Category 3 Investigation with Category 4 Treatment | D6: 226 | E6: 56 | F6: =VLOOKUP($B6,Calculation!$C$14:$R$24,16,FALSE) -> 274.5433836 | H6: =LOOKUP(B6,AnEActivityCost_DatabaseOne[HRG],AnEActivityCost_DatabaseOne[SumOfTotal Activity]) -> 132813 | I6: Equalise VB01Z and VB02Z on clinical and statistical grounds) will be within the error margins | J6: =SUMPRODUCT($F$5:$F$6,$H$5:$H$6)/SUM($H$5:$H$6) -> 274.4402186 | K6: Adjusted | L6: =IF(K6="Modelled",F6,IF(K6="Adjusted",J6,"Error")) -> 274.4402186 | M6: 274.4402186 | N6: =+'Price Adjustments'!$F$6 -> 0 | O6: =+'Price Adjustments'!$F$71 -> 0 | P6: =M6*(1+N6)*(1+O6) -> 274.4402186 | Q6: =MIN($P$5:$P$13,$P$15:$P$16) -> 63.81317496
B7: VB03Z | C7: Emergency Medicine, Category 3 Investigation with Category 1-3 Treatment | D7: 192 | E7: 56 | F7: =VLOOKUP($B7,Calculation!$C$14:$R$24,16,FALSE) -> 201.6156924 | H7: =LOOKUP(B7,AnEActivityCost_DatabaseOne[HRG],AnEActivityCost_DatabaseOne[SumOfTotal Activity]) -> 514348 | K7: Modelled | L7: 201.6156924 | M7: 201.6156924 | N7: =+'Price Adjustments'!$F$6 -> 0 | O7: =+'Price Adjustments'!$F$71 -> 0 | P7: 201.6156924 | Q7: 63.81317496
B8: VB04Z | C8: Emergency Medicine, Category 2 Investigation with Category 4 Treatment | D8: 168 | E8: 56 | F8: =VLOOKUP($B8,Calculation!$C$14:$R$24,16,FALSE) -> 186.1666638 | H8: =LOOKUP(B8,AnEActivityCost_DatabaseOne[HRG],AnEActivityCost_DatabaseOne[SumOfTotal Activity]) -> 889265 | K8: Modelled | L8: 186.1666638 | M8: 186.1666638 | N8: =+'Price Adjustments'!$F$6 -> 0 | O8: =+'Price Adjustments'!$F$71 -> 0 | P8: 186.1666638 | Q8: 63.81317496
B9: VB05Z | C9: Emergency Medicine, Category 2 Investigation with Category 3 Treatment | D9: 146 | E9: 56 | F9: =VLOOKUP($B9,Calculation!$C$14:$R$24,16,FALSE) -> 149.4139872 | H9: =LOOKUP(B9,AnEActivityCost_DatabaseOne[HRG],AnEActivityCost_DatabaseOne[SumOfTotal Activity]) -> 388207 | K9: Modelled | L9: 149.4139872 | M9: 149.4139872 | N9: =+'Price Adjustments'!$F$6 -> 0 | O9: =+'Price Adjustments'!$F$71 -> 0 | P9: 149.4139872 | Q9: 63.81317496
B10: VB06Z | C10: Emergency Medicine, Category 1 Investigation with Category 3-4 Treatment | D10: 102 | E10: 56 | F10: =VLOOKUP($B10,Calculation!$C$14:$R$24,16,FALSE) -> 108.1303713 | H10: =LOOKUP(B10,AnEActivityCost_DatabaseOne[HRG],AnEActivityCost_DatabaseOne[SumOfTotal Activity]) -> 493592 | K10: Modelled | L10: 108.1303713 | M10: 108.1303713 | N10: =+'Price Adjustments'!$F$6 -> 0 | O10: =+'Price Adjustments'!$F$71 -> 0 | P10: 108.1303713 | Q10: 63.81317496
B11: VB07Z | C11: Emergency Medicine, Category 2 Investigation with Category 2 Treatment | D11: 128 | E11: 56 | F11: =VLOOKUP($B11,Calculation!$C$14:$R$24,16,FALSE) -> 134.0580143 | H11: =LOOKUP(B11,AnEActivityCost_DatabaseOne[HRG],AnEActivityCost_DatabaseOne[SumOfTotal Activity]) -> 1755207 | K11: Modelled | L11: 134.0580143 | M11: 134.0580143 | N11: =+'Price Adjustments'!$F$6 -> 0 | O11: =+'Price Adjustments'!$F$71 -> 0 | P11: 134.0580143 | Q11: 63.81317496
B12: VB08Z | C12: Emergency Medicine, Category 2 Investigation with Category 1 Treatment | D12: 116 | E12: 56 | F12: =VLOOKUP($B12,Calculation!$C$14:$R$24,16,FALSE) -> 123.6709344 | H12: =LOOKUP(B12,AnEActivityCost_DatabaseOne[HRG],AnEActivityCost_DatabaseOne[SumOfTotal Activity]) -> 4112656 | K12: Modelled | L12: 123.6709344 | M12: 123.6709344 | N12: =+'Price Adjustments'!$F$6 -> 0 | O12: =+'Price Adjustments'!$F$71 -> 0 | P12: 123.6709344 | Q12: 63.81317496
B13: VB09Z | C13: Emergency Medicine, Category 1 Investigation with Category 1-2 Treatment | D13: 81 | E13: 56 | F13: =VLOOKUP($B13,Calculation!$C$14:$R$24,16,FALSE) -> 86.69850108 | H13: =LOOKUP(B13,AnEActivityCost_DatabaseOne[HRG],AnEActivityCost_DatabaseOne[SumOfTotal Activity]) -> 3941735 | K13: Modelled | L13: 86.69850108 | M13: 86.69850108 | N13: =+'Price Adjustments'!$F$6 -> 0 | O13: =+'Price Adjustments'!$F$71 -> 0 | P13: 86.69850108 | Q13: 63.81317496
B14: VB10Z | C14: Emergency Medicine, Dental Care | D14: 56 | E14: 56 | F14: =VLOOKUP($B14,Calculation!$C$14:$R$24,16,FALSE) -> 64.98589969 | H14: =LOOKUP(B14,AnEActivityCost_DatabaseOne[HRG],AnEActivityCost_DatabaseOne[SumOfTotal Activity]) -> 10938 | K14: Modelled | L14: 64.98589969 | M14: 64.98589969 | N14: =+'Price Adjustments'!$F$6 -> 0 | O14: 0 | P14: 64.98589969 | Q14: 63.81317496
B15: VB11Z | C15: Emergency Medicine, No Investigation with No Significant Treatment | D15: 56 | E15: 56 | F15: =VLOOKUP($B15,Calculation!$C$14:$R$24,16,FALSE) -> 63.81317496 | H15: =LOOKUP(B15,AnEActivityCost_DatabaseOne[HRG],AnEActivityCost_DatabaseOne[SumOfTotal Activity]) -> 4543052 | K15: Modelled | L15: 63.81317496 | M15: 63.81317496 | N15: =+'Price Adjustments'!$F$6 -> 0 | O15: 0 | P15: 63.81317496 | Q15: 63.81317496
B16: VB99Z | C16: Emergency Medicine, Patient Dead On Arrival | D16: N/A | E16: N/A | I16: Set equal to VB09Z | J16: =+F13 -> 86.69850108 | K16: Adjusted | L16: 86.69850108 | M16: 86.69850108 | N16: =+'Price Adjustments'!$F$6 -> 0 | O16: =+'Price Adjustments'!$F$71 -> 0 | P16: =M16*(1+N16)*(1+O16) -> 86.69850108 | Q16: 63.81317496
E17: Cost Quantum (£) | F17: =SUMPRODUCT(F5:F16,$H$5:$H$16) -> 1803042886 | K17: Cost Quantum (£) | L17: =SUMPRODUCT(L5:L16,$H$5:$H$16) -> 1803042886 | M17: =SUMPRODUCT(M5:M16,$H$5:$H$16) -> 1803042886
K18: QR2 | L18: =+F17/L17 -> 1 | M18: =+L17/M17-1 -> 0
